bitfinex-derivatives/quotes_SOLF0:USTF0_20250820
["timestamp","ask_amount","ask_price","bid_price","bid_amount"]
[1755698454151,5.583,179.12,179.01,3.07]
[1755698454346,157.13,179.13,179.01,3.07]
[1755698454647,2.83,179.12,178.96,65.07]
[1755698454844,2.83,179.12,178.96,3.07]
[1755698455652,2.83,179.12,179.02,3.02]
[1755698455948,154.3,179.13,179.02,3.02]
[1755698456149,5.5833,179.11,179.06,5.5844]
[1755698456350,154.3,179.13,179.02,3.02]
[1755698456746,5.5832,179.11,179.04,5.5851]
[1755698456950,154.3,179.13,179.02,3.02]
[1755698458546,5.5835,179.1,179.03,5.5854]
[1755698458742,154.3,179.13,179.02,3.02]
[1755698458949,5.5839,179.09,179.02,3.02]
[1755698459156,2.84,179.12,179.02,3.02]
[1755698459550,2.84,179.12,179.03,5.5854]
[1755698459751,2.84,179.12,179.02,3.02]
[1755698460558,2.84,179.18,179.02,3.02]
[1755698460851,2.84,179.18,179.0,4.93930403]
[1755698460852,2.84,179.18,179.09,3.02]
[1755698461057,0.04007451,179.12,179.1,3.02]
[1755698461252,154.16,179.21,179.08,4.93930403]
[1755698461454,2.84,179.24,179.13,3.02]
[1755698461656,5.5799,179.22,179.13,3.02]
[1755698461856,2.84,179.24,179.13,3.02]
[1755698462753,2.84,179.24,179.17,0.04031644]
[1755698462956,154.14,179.29,179.17,3.06031644]
[1755698462957,2.84,179.29,179.17,3.06031644]
[1755698463451,2.84,179.29,179.17,3.02]
[1755698463852,2.84,179.29,179.21,0.04163925]
[1755698464459,5.5793,179.24,179.21,0.04163925]
[1755698464646,2.84,179.29,179.21,0.04163925]
[1755698465558,8.4193,179.24,179.21,0.04163925]
[1755698465758,2.84,179.24,179.21,0.04163925]
[1755698465957,2.84,179.28,179.22,5.5795]
[1755698466157,2.84,179.32,179.21,0.04163925]
[1755698466357,2.84,179.32,179.17,3.02]
[1755698466358,156.88,179.32,179.17,3.02]
[1755698466555,156.88,179.32,179.2,5.5802]
[1755698466556,5.5781,179.27,179.2,5.5802]
[1755698466756,2.84,179.31,179.25,0.03569536]
[1755698467156,4.93930403,179.3,179.17,3.02]
[1755698467351,2.84,179.29,179.17,3.02]
[1755698467765,5.5798,179.22,179.17,3.02]
[1755698467952,0.0408163,179.25,179.17,3.02]
[1755698468156,2.84,179.27,179.17,3.02]
[1755698468568,2.84,179.26,179.12,3.02]
[1755698469068,2.84,179.22,179.07,3.02]
[1755698469268,5.5821,179.15,179.09,5.5837]
[1755698469457,4.93930403,179.19,179.07,3.02]
[1755698469768,5.5815,179.17,179.07,3.02]
[1755698470065,153.96,179.21,179.07,3.02]
[1755698470259,4.93930403,179.19,179.07,3.02]
[1755698470465,2.84,179.18,179.07,3.02]
[1755698470960,4.93930403,179.15,179.02,3.02]
[1755698471155,2.84,179.14,179.02,3.02]
[1755698472062,2.84,179.1,178.96,3.02]
[1755698472461,2.84,179.1,178.98,5.5871]
[1755698472665,2.84,179.1,178.96,3.02]
[1755698473367,7.77930403,179.03,178.88,3.02]
[1755698473760,2.84,179.03,178.88,3.02]
[1755698473955,4.93930403,179.02,178.92,5.5887]
[1755698474160,4.93930403,179.02,178.88,3.02]
[1755698474370,153.94,179.06,178.88,3.02]
[1755698474565,378.0,179.07,178.83,76.57267041]
[1755698474566,378.0,179.07,178.96,5.5875]
[1755698474766,378.0,179.07,178.95,3.02]
[1755698476360,531.9,179.07,178.95,8.608]
[1755698476557,375.16,179.07,178.95,3.02]
[1755698478964,153.9,179.13,178.95,3.02]
[1755698479167,153.9,179.13,179.0,3.02]
[1755698479673,5.5835,179.1,179.0,8.6062]
[1755698479867,5.5835,179.1,179.0,3.02]
[1755698480169,153.9,179.13,179.0,3.02]
[1755698480366,2.84,179.12,179.0,3.02]
[1755698481170,153.88,179.11,179.0,3.02]
[1755698481366,375.24,179.17,179.0,3.02]
[1755698481771,5.5819,179.15,179.0,3.02]
[1755698481966,375.24,179.17,179.01,62.0]
[1755698482164,375.24,179.17,179.02,3.02]
[1755698482369,2.84,179.16,179.02,3.02]
[1755698483075,2.84,179.11,179.02,3.02]
[1755698483374,156.68,179.11,179.02,3.02]
[1755698483868,156.68,179.11,178.92,3.02]
[1755698484070,5.5849,179.06,178.97,5.5874]
[1755698484372,156.68,179.11,178.96,3.02]
[1755698484962,2.84,179.1,178.96,3.02]
[1755698485363,2.84,179.1,178.92,3.02]
[1755698485769,5.5861,179.02,178.93,5.5886]
[1755698485972,5.5861,179.02,178.92,3.02]
[1755698486170,2.84,179.06,178.92,3.02]
[1755698486670,2.84,179.06,178.95,5.588]
[1755698486870,2.84,179.06,178.92,3.02]
[1755698487165,2.84,179.06,178.93,5.5886]
[1755698487573,2.84,179.06,178.92,3.02]
[1755698488374,2.84,179.06,178.86,2.93]
[1755698488776,8.36476982,179.03,178.86,2.93]
[1755698489072,2.84,179.02,178.86,2.93]
[1755698489977,153.78,179.01,178.86,2.93]
[1755698490377,2.84,179.0,178.86,2.93]
[1755698490775,2.84,178.97,178.81,2.93]
[1755698491377,2.84,178.97,178.85,5.5912]
[1755698491875,2.84,178.97,178.81,2.93]
[1755698493772,5.59,178.89,178.81,2.93]
[1755698494077,2.84,178.92,178.81,2.93]
[1755698495075,5.5903,178.89,178.81,2.93]
[1755698495280,2.84,178.92,178.81,2.93]
[1755698495477,5.5903,178.88,178.81,2.93]
[1755698495676,2.84,178.92,178.81,2.93]
[1755698496577,5.5903,178.89,178.81,2.93]
[1755698497082,2.84,178.92,178.81,8.5222]
[1755698497579,2.84,178.92,178.81,2.93]
[1755698498475,2.84,178.92,178.76,2.93]
[1755698498780,2.84,178.87,178.76,2.93]
[1755698498978,2.84,178.87,178.72,2.93]
[1755698499182,2.84,178.87,178.67,2.93]
[1755698499183,5.5947,178.74,178.67,2.93]
[1755698499377,2.84,178.84,178.67,2.93]
[1755698499682,2.84,178.84,178.68,5.5965]
[1755698499883,2.84,178.84,178.69,2.93]
[1755698501374,2.84,178.84,178.71,2.93]
[1755698501770,2.84,178.84,178.71,8.5256]
[1755698501981,2.84,178.84,178.71,2.93]
[1755698502783,2.84,178.88,178.71,2.93]
[1755698503680,2.84,178.84,178.64,2.93]
[1755698503887,2.84,178.84,178.65,5.5974]
[1755698504185,2.84,178.84,178.64,2.93]
[1755698504683,2.84,178.8,178.64,2.93]
[1755698504986,156.58,178.8,178.64,2.93]
[1755698506581,8.36476982,178.79,178.6,0.9738488]
[1755698506786,2.84,178.78,178.61,2.93]
[1755698507188,2.84,178.78,178.66,2.93]
[1755698507985,11.20476982,178.83,178.66,2.93]
[1755698508188,11.20476982,178.83,178.67,5.5968]
[1755698508390,2.84,178.82,178.68,2.93]
[1755698508590,2.84,178.78,178.68,2.93]
[1755698510192,2.84,178.78,178.61,2.93]
[1755698510384,7.80066242,178.78,178.61,2.93]
[1755698510792,7.80066242,178.78,178.64,2.93]
[1755698511285,5.5953,178.72,178.64,2.93]
[1755698511489,7.80066242,178.78,178.64,2.93]
[1755698511687,5.5964,178.69,178.64,2.93]
[1755698511995,2.84,178.77,178.61,2.93]
[1755698512692,5.5943,178.76,178.66,5.5969]
[1755698512893,7.80066242,178.83,178.67,2.93]
[1755698513392,7.80066242,178.83,178.72,2.93]
[1755698513791,5.5936,178.78,178.72,2.93]
[1755698514186,7.80066242,178.83,178.72,2.93]
[1755698514691,7.80066242,178.83,178.66,66.96066242]
[1755698514994,5.5941,178.76,178.68,8.5265]
[1755698515193,2.84,178.82,178.68,2.93]
[1755698516089,5.5946,178.75,178.68,2.93]
[1755698516492,2.84,178.82,178.68,2.93]
[1755698518404,5.5946,178.75,178.68,2.93]
[1755698518907,2.85,178.88,178.72,4.96066242]
[1755698519199,2.85,178.88,178.73,2.86]
[1755698519603,2.85,178.88,178.73,8.4549]
[1755698519790,4.96066242,178.86,178.73,2.86]
[1755698519997,2.85,178.85,178.73,2.86]
[1755698522597,5.5937,178.78,178.73,2.86]
[1755698522799,2.85,178.85,178.73,2.86]
[1755698524300,5.5927,178.81,178.74,5.5944]
[1755698524600,5.5927,178.81,178.66,4.96066242]
[1755698524601,2.85,178.9,178.71,2.86]
[1755698524800,276.16737126,178.95,178.78,4.96066242]
[1755698525104,276.16737126,178.95,178.8,2.86]
[1755698525303,5.5899,178.9,178.81,5.5922]
[1755698525510,276.16737126,178.95,178.8,2.86]
[1755698526005,4.96066242,178.92,178.8,2.86]
[1755698526210,2.85,178.94,178.8,2.86]
[1755698526707,122.54737126,178.95,178.8,2.86]
[1755698526910,5.5887,178.93,178.85,2.86]
[1755698527400,2.85,178.98,178.86,5.5909]
[1755698527711,2.85,178.98,178.85,2.86]
[1755698528201,158.48066242,179.0,178.8,2.86]
[1755698528202,0.03587527,178.93,178.8,2.86]
[1755698528404,5.5903,178.88,178.8,8.4528]
[1755698528600,7.81066242,178.92,178.8,2.86]
[1755698528995,5.5912,178.85,178.8,2.86]
[1755698529200,7.81066242,178.92,178.8,2.86]
[1755698529402,2.85,178.92,178.8,2.86]
[1755698530004,2.85,178.97,178.84,2.86]
[1755698530309,2.85,179.01,178.84,2.86]
[1755698530802,153.44,179.04,178.83,4.96066242]
[1755698530803,153.44,179.04,178.9,2.86]
[1755698531004,2.85,179.06,178.9,2.86]
[1755698531311,2.85,179.06,178.96,2.86]
[1755698532711,7.81066242,179.06,178.89,62.0]
[1755698532905,7.81066242,179.06,178.89,2.86]
[1755698533107,2.85,179.01,178.89,2.86]
[1755698534107,4.96066242,178.98,178.89,2.86]
[1755698534301,2.85,178.97,178.83,378.64]
[1755698534505,2.85,179.01,178.88,2.86]
[1755698534906,2.85,179.01,178.91,5.5891]
[1755698535106,2.85,179.01,178.88,2.86]
[1755698535308,153.34,179.02,178.88,2.86]
[1755698536205,161.15066242,179.02,178.88,2.86]
[1755698536407,2.85,179.01,178.88,2.86]
[1755698536714,2.85,178.97,178.88,2.86]
[1755698536902,2.85,178.97,178.83,378.64]
[1755698537108,2.85,178.97,178.83,384.2316]
[1755698537308,2.85,178.97,178.83,378.64]
[1755698537708,2.85,178.97,178.83,384.2316]
[1755698537914,2.85,178.97,178.83,378.64]
[1755698538410,2.85,178.93,178.83,2.86]
[1755698539014,2.85,178.93,178.73,375.6]
[1755698539015,2.85,178.93,178.74,2.86]
[1755698539315,2.85,178.93,178.75,2.86]
[1755698539518,2.85,178.93,178.8,2.86]
[1755698540216,153.26,178.97,178.8,2.86]
[1755698540217,2.85,178.97,178.8,2.86]
[1755698540411,5.59,178.89,178.81,5.5924]
[1755698540612,2.85,178.93,178.8,2.86]
[1755698541917,2.85,178.93,178.74,62.0]
[1755698542116,2.85,178.89,178.75,2.86]
[1755698542312,4.96066242,178.94,178.75,2.86]
[1755698542505,7.81066242,178.94,178.75,2.86]
[1755698542709,7.81066242,178.94,178.77,4.96066242]
[1755698542907,7.81066242,178.94,178.78,2.86]
[1755698543116,7.81066242,178.94,178.8,5.5927]
[1755698543411,7.81066242,178.94,178.78,2.86]
[1755698543620,5.5894,178.91,178.78,2.86]
[1755698543811,7.81066242,178.94,178.78,2.86]
[1755698544318,7.81066242,178.94,178.82,2.86]
[1755698544509,2.85,178.94,178.82,2.86]
[1755698545106,5.5888,178.93,178.84,5.5915]
[1755698545407,4.96066242,178.97,178.82,2.86]
[1755698545612,4.96066242,178.97,178.85,5.5911]
[1755698546113,5.589,178.93,178.84,5.5914]
[1755698546313,4.96066242,178.97,178.82,2.86]
[1755698546516,2.85,178.96,178.82,2.86]
[1755698546713,2.85,178.92,178.82,2.86]
[1755698547119,5.59,178.89,178.82,2.86]
[1755698547419,2.85,178.92,178.82,2.86]
[1755698547612,7.81066242,178.97,178.82,2.86]
[1755698547818,2.85,178.97,178.83,3.1]
[1755698548212,5.5893,178.92,178.83,8.6916]
[1755698548413,4.96066242,178.92,178.75,3.1]
[1755698548718,5.5888,178.93,178.78,4.96066242]
[1755698548914,2.85,178.94,178.79,3.1]
[1755698549318,375.6,178.99,178.86,3.1]
[1755698549810,5.5874,178.98,178.9,5.5894]
[1755698550013,375.6,178.99,178.86,8.06066242]
[1755698550208,375.6,178.99,178.86,4.96066242]
[1755698550513,153.16,179.04,178.87,3.1]
[1755698552117,2.85,179.03,178.87,3.1]
[1755698552321,2.85,179.02,178.87,3.1]
[1755698553318,2.85,178.97,178.87,3.1]
[1755698553518,2.85,178.97,178.82,8.06066242]
[1755698553824,5.5888,178.93,178.85,5.5912]
[1755698554014,2.85,178.97,178.83,3.1]
[1755698554315,2.85,178.97,178.87,3.1]
[1755698555115,2.85,178.97,178.82,3.1]
[1755698555314,5.5903,178.89,178.82,3.1]
[1755698555520,2.85,178.94,178.82,3.1]
[1755698556024,2.85,178.94,178.82,8.692]
[1755698556611,2.85,178.94,178.82,3.1]
[1755698557117,2.85,178.94,178.84,5.5913]
[1755698557515,5.5896,178.91,178.84,5.5913]
[1755698557715,2.85,178.94,178.83,5.5918]
[1755698557911,2.85,178.94,178.77,86.3973754]
[1755698558217,2.85,178.9,178.78,5.5932]
[1755698558410,2.85,178.9,178.77,89.4973754]
[1755698558621,5.5911,178.86,178.77,89.4973754]
[1755698558812,2.85,178.9,178.77,3.1]
[1755698559216,2.85,178.86,178.73,378.7]
[1755698560422,5.5916,178.84,178.78,5.5932]
[1755698560819,2.85,178.86,178.79,5.5931]
[1755698561022,2.85,178.86,178.76,3.1]
[1755698561217,4.96066242,178.91,178.76,3.1]
[1755698561218,7.81066242,178.91,178.76,3.1]
[1755698561523,2.85,178.9,178.76,3.1]
[1755698561826,2.85,178.9,178.77,5.5936]
[1755698562025,2.85,178.9,178.76,3.1]
[1755698562418,2.85,178.9,178.78,5.5932]
[1755698562621,2.85,178.9,178.76,3.1]
[1755698563023,2.85,178.9,178.78,5.5934]
[1755698563937,2.85,178.9,178.76,3.1]
[1755698564319,2.85,178.9,178.77,3.1]
[1755698564520,2.85,178.94,178.77,3.1]
[1755698564728,2.85,178.94,178.84,5.5913]
[1755698565026,2.85,178.94,178.82,3.1]
[1755698565726,2.85,178.94,178.82,8.6919]
[1755698566026,2.85,178.94,178.82,3.1]
[1755698566223,2.85,178.94,178.84,5.5915]
[1755698566618,2.85,178.94,178.82,3.1]
[1755698566821,2.85,178.94,178.82,8.692]
[1755698567018,2.85,178.94,178.73,375.6]
[1755698567322,2.85,178.9,178.77,3.1]
[1755698567922,2.85,178.9,178.77,8.6936]
[1755698568130,2.85,178.9,178.77,3.1]
[1755698568423,5.5904,178.88,178.81,3.1]
[1755698568618,152.92,178.92,178.81,3.1]
[1755698569018,2.85,178.95,178.8,4.96066242]
[1755698569218,2.85,178.95,178.81,3.1]
[1755698569417,375.6,178.97,178.86,5.5908]
[1755698569717,375.6,178.97,178.85,3.1]
[1755698569927,5.5888,178.93,178.85,3.1]
[1755698570231,2.85,178.96,178.85,3.1]
[1755698570624,5.5881,178.95,178.85,3.1]
[1755698570824,2.85,178.96,178.85,3.1]
[1755698571030,5.5886,178.94,178.87,5.5905]
[1755698571230,2.85,178.96,178.87,5.5905]
[1755698571429,2.85,178.96,178.85,3.1]
[1755698571631,5.5884,178.94,178.87,5.5905]
[1755698571831,5.5884,178.94,178.85,3.1]
[1755698572131,2.85,178.96,178.85,3.1]
[1755698572431,152.9,179.0,178.85,3.1]
[1755698572827,5.5869,178.99,178.84,4.96066242]
[1755698573128,152.9,179.0,178.85,3.1]
[1755698573331,158.4866,179.0,178.92,5.5889]
[1755698573531,152.9,179.0,178.91,3.1]
[1755698574624,5.5872,178.98,178.91,3.1]
[1755698574932,152.9,179.0,178.87,3.1]
[1755698575124,2.85,178.99,178.87,3.1]
[1755698575728,5.5886,178.94,178.87,3.1]
[1755698575930,2.85,178.99,178.81,2.91]
[1755698576121,4.96066242,178.96,178.81,2.91]
[1755698576325,5.5899,178.9,178.82,5.5919]
[1755698576635,2.84,178.95,178.81,2.91]
[1755698578432,5.5894,178.91,178.84,5.5912]
[1755698578733,2.84,178.95,178.81,2.91]
[1755698579230,2.84,178.99,178.85,2.91]
[1755698579434,5.5872,178.98,178.85,2.91]
[1755698580029,152.9,179.0,178.85,2.91]
[1755698580230,2.84,178.99,178.85,2.91]
[1755698580431,4.96066242,178.97,178.85,2.91]
[1755698581037,2.84,178.99,178.85,2.91]
[1755698582136,2.84,178.99,178.92,5.589]
[1755698582331,2.84,178.99,178.9,2.91]
[1755698582733,2.84,178.99,178.93,5.5885]
[1755698583039,2.84,178.99,178.9,2.91]
[1755698583440,158.4867,179.0,178.9,2.91]
[1755698583838,2.84,179.03,178.9,2.91]
[1755698584538,5.5859,179.02,178.96,5.5876]
[1755698585027,2.84,179.05,178.97,5.5874]
[1755698585028,5.5859,179.03,178.97,5.5874]
[1755698585226,2.84,179.05,178.89,7.87066242]
[1755698585430,2.84,179.04,178.89,2.91]
[1755698586428,2.84,179.04,178.9,2.91]
[1755698586840,5.5862,179.02,178.96,5.5876]
[1755698587034,375.66,179.07,178.93,4.96066242]
[1755698587236,2.84,179.09,178.94,2.91]
[1755698587438,2.84,179.09,178.98,2.91]
[1755698588143,5.584,179.08,178.98,2.91]
[1755698588335,2.84,179.09,178.98,2.91]
[1755698588642,2.84,179.22,179.05,4.96066242]
[1755698588840,2.84,179.22,179.06,2.91]
[1755698589436,5.5815,179.17,179.09,5.5835]
[1755698589636,2.84,179.22,179.06,2.91]
[1755698589833,4.96066242,179.2,179.06,2.91]
[1755698590135,2.84,179.19,179.06,2.91]
[1755698590532,5.5824,179.14,179.06,8.4946]
[1755698590735,2.84,179.19,179.06,2.91]
[1755698591138,2.84,179.15,179.01,378.45]
[1755698592037,5.584,179.09,179.02,5.5858]
[1755698592238,5.584,179.09,179.01,378.45]
[1755698592439,5.584,179.09,179.01,2.91]
[1755698592741,2.84,179.11,179.01,2.91]
[1755698592942,2.84,179.16,179.01,2.91]
[1755698593341,2.84,179.16,179.05,2.91]
[1755698594839,0.03973613,179.12,179.05,2.91]
[1755698595339,0.03973613,179.12,178.98,70.35616177]
[1755698595642,2.87973613,179.12,178.99,2.91]
[1755698595842,2.84,179.12,178.99,2.91]
[1755698596042,5.5835,179.1,179.03,5.5855]
[1755698596239,2.84,179.12,178.99,2.91]
[1755698597743,8.4229,179.12,179.04,5.585]
[1755698597941,2.84,179.12,179.02,2.91]
[1755698598134,2.84,179.17,179.02,2.91]
[1755698598334,2.84,179.17,179.08,5.5837]
[1755698598643,2.84,179.17,179.06,2.91]
[1755698598843,2.84,179.17,179.09,5.5835]
[1755698598844,5.5818,179.16,179.09,5.5835]
[1755698599044,2.84,179.17,179.06,2.91]
[1755698599446,8.4213,179.17,179.1,5.5834]
[1755698599743,375.32,179.19,179.06,2.91]
[1755698600141,2.84,179.18,179.06,2.91]
[1755698600536,5.5819,179.15,179.08,5.5837]
[1755698600941,5.5819,179.15,179.06,2.91]
[1755698600942,2.84,179.18,179.06,2.91]
[1755698601145,2.84,179.18,179.0,2.91]
[1755698601844,2.84,179.18,179.08,2.91]
[1755698602246,2.84,179.18,179.04,2.91]
[1755698603336,2.84,179.16,178.94,2.91]
[1755698603737,2.84,179.16,179.03,5.5855]
[1755698603940,2.84,179.16,178.94,2.91]
[1755698604140,2.84,179.16,178.98,8.35616177]
[1755698604343,2.84,179.16,178.99,2.91]
[1755698605454,527.5,179.19,179.07,2.91]
[1755698606143,2.84,179.26,179.07,2.91]
[1755698606348,2.84,179.26,179.05,11.1697]
[1755698606542,2.84,179.26,179.09,2.93]
[1755698607345,5.579,179.25,179.17,5.581]
[1755698607550,2.84,179.26,179.14,2.93]
[1755698607949,5.5791,179.24,179.16,5.5814]
[1755698608142,2.84,179.26,179.14,2.93]
[1755698608544,152.16,179.28,179.14,2.93]
[1755698609046,375.22,179.29,179.14,2.93]
[1755698609241,2.84,179.29,179.14,2.93]
[1755698609447,2.84,179.29,179.15,2.93]
[1755698609953,152.08,179.33,179.15,2.93]
[1755698611047,152.08,179.33,179.19,2.93]
[1755698611248,127.7039044,179.38,179.25,2.93]
[1755698611663,5.5756,179.36,179.25,2.93]
[1755698611859,127.7039044,179.38,179.25,2.93]
[1755698613159,5.5754,179.36,179.27,5.578]
[1755698613364,127.7039044,179.38,179.25,2.93]
[1755698613662,127.7039044,179.38,179.18,8.35616177]
[1755698613663,2.84,179.37,179.21,5.5799]
[1755698613856,2.84,179.37,179.19,2.93]
[1755698614259,5.5766,179.32,179.23,5.5793]
[1755698614456,2.84,179.35,179.19,2.93]
[1755698615061,5.5763,179.33,179.19,2.93]
[1755698615257,2.84,179.35,179.19,2.93]
[1755698616873,154.74,179.35,179.19,2.93]
[1755698617066,8.35616177,179.34,179.19,2.93]
[1755698617274,2.84,179.33,179.19,2.93]
[1755698617660,157.4756,179.35,179.19,2.93]
[1755698617866,151.9,179.35,179.2,8.35616177]
[1755698618066,2.84,179.37,179.31,5.5768]
[1755698618262,375.14,179.39,179.31,5.5768]
[1755698618466,375.14,179.39,179.28,2.93]
[1755698618664,375.14,179.39,179.32,5.5765]
[1755698618971,154.72,179.41,179.28,2.93]
[1755698619169,160.2938,179.41,179.33,5.576]
[1755698619368,154.72,179.41,179.31,2.93]
[1755698620171,154.72,179.41,179.26,64.93]
[1755698621388,154.72,179.41,179.27,2.93]
[1755698621969,160.2938,179.41,179.27,2.93]
[1755698622165,151.88,179.41,179.27,2.93]
[1755698622370,2.84,179.4,179.27,2.93]
[1755698622970,5.5749,179.38,179.29,5.5774]
[1755698623576,2.84,179.4,179.27,2.93]
[1755698624576,2.84,179.45,179.32,2.93]
[1755698625376,2.84,179.45,179.32,64.93]
[1755698625576,2.84,179.45,179.32,2.93]
[1755698626083,2.84,179.45,179.35,5.5754]
[1755698626280,2.84,179.45,179.32,2.93]
[1755698627477,2.84,179.45,179.26,2.93]
[1755698627682,2.84,179.45,179.3,5.5769]
[1755698627874,2.84,179.45,179.26,2.93]
[1755698629773,5.5736,179.42,179.26,2.93]
[1755698630072,2.84,179.45,179.26,2.93]
[1755698630874,2.84,179.41,179.26,2.93]
[1755698631684,2.84,179.4,179.26,2.93]
[1755698631879,2.84,179.33,179.21,2.93]
[1755698632082,2.84,179.33,179.21,64.93]
[1755698632284,2.84,179.33,179.21,2.93]
[1755698632880,2.84,179.33,179.27,5.5779]
[1755698633273,2.84,179.33,179.21,2.93]
[1755698634375,2.84,179.33,179.16,378.07]
[1755698634576,8.32872811,179.32,179.16,378.07]
[1755698634881,2.84,179.27,179.16,378.07]
[1755698635084,5.5788,179.25,179.19,5.5805]
[1755698635378,159.90872811,179.32,179.16,2.93]
[1755698635585,154.42,179.32,179.16,2.93]
[1755698636180,154.42,179.32,179.24,5.5789]
[1755698636181,5.5774,179.3,179.24,5.5789]
[1755698636381,5.5774,179.3,179.16,2.93]
[1755698636382,154.42,179.32,179.16,2.93]
[1755698636778,5.5777,179.29,179.16,2.93]
[1755698636984,154.42,179.32,179.16,2.93]
[1755698637181,2.84,179.32,179.16,2.93]
[1755698637484,2.84,179.33,179.21,3.15]
[1755698637886,8.4163,179.33,179.28,5.5777]
[1755698638073,2.84,179.32,179.28,5.5777]
[1755698638278,2.84,179.32,179.21,3.15]
[1755698639081,5.5769,179.31,179.21,3.15]
[1755698639278,2.84,179.32,179.21,3.15]
[1755698639482,8.4166,179.32,179.21,3.15]
[1755698639681,2.84,179.32,179.21,3.15]
[1755698640085,2.84,179.35,179.21,3.15]
[1755698640692,2.84,179.34,179.16,11.163]
[1755698640986,2.84,179.34,179.17,65.15]
[1755698641186,5.5764,179.33,179.27,5.5779]
[1755698641486,5.5764,179.33,179.12,159.88872811]
[1755698641487,2.84,179.32,179.11,3.15]
[1755698641686,374.7,179.36,179.11,3.15]
[1755698641687,2.84,179.23,179.11,3.15]
[1755698642185,2.84,179.25,179.11,3.15]
[1755698642686,2.84,179.17,179.04,3.15]
[1755698643485,8.32872811,179.23,179.04,3.15]
[1755698643786,2.84,179.22,179.05,3.15]
[1755698644391,2.84,179.22,179.07,3.15]
[1755698644691,374.7,179.36,179.07,3.15]
[1755698644692,151.5,179.24,179.07,3.15]
[1755698644890,2.84,179.23,179.07,3.15]
[1755698645096,2.84,179.27,179.09,3.15]
[1755698645283,159.86872811,179.33,179.16,3.15]
[1755698645487,2.84,179.29,179.16,3.15]
[1755698646293,176.64872811,179.33,179.16,3.15]
[1755698646294,2.84,179.32,179.16,3.15]
[1755698646597,19.62,179.32,179.16,3.15]
[1755698646785,2.84,179.25,179.08,3.15]
[1755698647386,8.32872811,179.23,179.08,3.15]
[1755698647591,8.32872811,179.23,179.04,3.15]
[1755698647592,2.84,179.21,179.04,3.15]
[1755698647793,2.84,179.21,178.99,11.1732]
[1755698647794,2.84,179.17,178.98,3.15]
[1755698648296,2.84,179.17,178.99,62.0]